fUSD/lending_fUSD_20251129
["ID","MTS","AMOUNT","RATE_DAILY","PERIOD"]
[395104947,1764433850057,-304.768612,0.00015823,2]
[395104948,1764433850067,-304.768612,0.00015823,2]
[395104949,1764433850077,-304.768612,0.00015823,2]
[395104950,1764433850087,-304.768612,0.00015823,2]
[395104951,1764433850096,-151.0,0.00015823,2]
[395104952,1764433850106,-151.0,0.00015823,2]
[395104953,1764433850117,-151.0,0.00015823,2]
[395104954,1764433850127,-151.0,0.00015823,2]
[395104955,1764433850138,-427.446734,0.00015823,2]
[395104956,1764433850148,-427.446734,0.00015823,2]
[395104957,1764433850159,-427.446734,0.00015823,2]
[395104958,1764433850169,-427.446734,0.00015823,2]
[395104959,1764433850178,-258.8853,0.00015823,2]
[395104960,1764433850188,-151.0,0.00015823,2]
[395104961,1764433850197,-151.0,0.00015823,2]
[395104962,1764433850207,-151.0,0.00015823,2]
[395104963,1764433850218,-151.0,0.00015823,2]
[395104964,1764433850227,-219.81787,0.00015823,2]
[395104965,1764433850236,-219.81787,0.00015823,2]
[395104966,1764433850246,-219.81787,0.00015823,2]
[395104967,1764433850256,-219.817874,0.00015823,2]
[395104968,1764433850265,-151.0,0.00015823,2]
[395104969,1764433850275,-151.0,0.00015823,2]
[395104970,1764433850284,-151.0,0.00015823,2]
[395104971,1764433850293,-370.130436,0.00015823,2]
[395104972,1764433850303,-370.130436,0.00015823,2]
[395104973,1764433850312,-151.0,0.00015823,2]
[395104974,1764433850321,-370.130436,0.00015823,2]
[395104975,1764433850330,-370.130431,0.00015823,2]
[395104976,1764433850340,-151.0,0.00015823,2]
[395104977,1764433850350,-151.0,0.00015823,2]
[395104978,1764433850359,-151.0,0.00015823,2]
[395104979,1764433850369,-250.0,0.00015828,2]
[395104980,1764433850378,-1680.0,0.00015828,2]
[395104981,1764433850387,-160.684943,0.00015829,2]
[395104982,1764433850396,-151.0,0.00015829,2]
[395104983,1764433850405,-151.0,0.00015829,2]
[395104984,1764433850415,-151.0,0.00015829,2]
[395104985,1764433850424,-428.473139,0.00015829,2]
[395104986,1764433850433,-428.473139,0.00015829,2]
[395104987,1764433850442,-428.473139,0.00015829,2]
[395104988,1764433850451,-428.473139,0.00015829,2]
[395104989,1764433850460,-195.0,0.00015829,2]
[395104990,1764433850470,-193.0,0.00015829,2]
[395104991,1764433850480,-157.71488302,0.00015829,2]
[395104992,1764433850489,-150.0,0.00015854,2]
[395104993,1764433850498,-150.0,0.00015854,2]
[395104994,1764433850507,-150.0,0.00015854,2]
[395104995,1764433850516,-151.0,0.00015854,2]
[395104996,1764433850525,-151.0,0.00015854,2]
[395104997,1764433850535,-151.0,0.00015854,2]
[395104998,1764433850543,-267.543224,0.00015854,2]
[395104999,1764433850552,-450.347705,0.00015854,2]
[395105000,1764433850562,-450.347705,0.00015854,2]
[395105001,1764433850572,-450.347705,0.00015854,2]
[395105002,1764433850581,-450.347705,0.00015854,2]
[395105003,1764433850594,-166.66,0.00015854,2]
[395105004,1764433850605,-1087.94,0.00015952,2]
[395105005,1764433850614,-1419.0,0.0001596,2]
[395105006,1764433850625,-500.0,0.0001596,2]
[395105007,1764433850635,-500.0,0.0001596,2]
[395105008,1764433850645,-150.0,0.00015967,2]
[395105009,1764433850655,-150.0,0.00015967,2]
[395105010,1764433850664,-150.0,0.00015967,2]
[395105011,1764433850673,-500.0,0.00015973,2]
[395105012,1764433850682,-162.64772289,0.00015973,2]
[395105013,1764433850691,-414.60784787,0.00015973,2]
[395105014,1764433850701,-500.0,0.00015973,2]
[395105015,1764433850711,-300.76589598,0.00015973,2]
[395105016,1764433850722,-500.0,0.00015973,2]
[395105017,1764433850732,-500.0,0.00015973,2]
[395105018,1764433850742,-500.0,0.00015973,2]
[395105019,1764433850751,-410.80515512,0.00015973,2]
[395105020,1764433850759,-500.0,0.00015973,2]
[395105021,1764433850768,-500.0,0.00015973,2]
[395105022,1764433850778,-298.0023857,0.00015973,2]
[395105023,1764433850787,-500.0,0.00015973,2]
[395105024,1764433850799,-500.0,0.00015973,2]
[395105025,1764433850808,-622.79081199,0.00015973,2]
[395105026,1764433850817,-500.0,0.00015973,2]
[395105027,1764433850827,-174.71790822,0.00015973,2]
[395105028,1764433850838,-500.0,0.00015973,2]
[395105029,1764433850847,-500.0,0.00015973,2]
[395105030,1764433850857,-500.0,0.00015973,2]
[395105031,1764433850867,-500.0,0.00015999,2]
[395105032,1764433850876,-500.0,0.00015999,2]
[395105033,1764433850886,-160.0,0.00016,2]
[395105034,1764433850896,-228545.43255806,0.00016,4]
[395105035,1764433850905,-151.0,0.00016,2]
[395105036,1764433850916,-151.0,0.00016,2]
[395105037,1764433850926,-151.0,0.00016,2]
[395105038,1764433850935,-450.347705,0.00016,2]
[395105039,1764433850945,-450.347705,0.00016,2]
[395105040,1764433850955,-151.0,0.00016,2]
[395105041,1764433850965,-151.0,0.00016,2]
[395105042,1764433850976,-450.347705,0.00016,2]
[395105043,1764433850986,-151.0,0.00016,2]
[395105044,1764433850996,-450.347699,0.00016,2]
[395105045,1764433851007,-428.473139,0.00016,2]
[395105046,1764433851016,-428.473139,0.00016,2]
[395105047,1764433851026,-428.473139,0.00016,2]
[395105048,1764433851035,-428.473139,0.00016,2]
[395105049,1764433851044,-245.322231,0.00016,2]
[395105050,1764433851054,-337.882814,0.00016,2]
[395105051,1764433851063,-245.322231,0.00016,2]
[395105052,1764433851072,-337.882814,0.00016,2]
[395105053,1764433851083,-245.322231,0.00016,2]
[395105054,1764433851093,-337.882814,0.00016,2]
[395105055,1764433851104,-245.322231,0.00016,2]
[395105056,1764433851113,-337.882814,0.00016,2]
[395105057,1764433851123,-502.963945,0.00016,2]
[395105058,1764433851133,-502.963945,0.00016,2]
[395105059,1764433851143,-502.963945,0.00016,2]
[395105060,1764433851152,-502.963945,0.00016,2]
[395105061,1764433851165,-151.0,0.00016,2]
[395105062,1764433851176,-167.219592,0.00016,2]
[395105063,1764433851187,-167.219592,0.00016,2]
[395105064,1764433851196,-167.219592,0.00016,2]
[395105065,1764433851205,-167.219592,0.00016,2]
[395105066,1764433851215,-744.159204,0.00016,2]
[395105067,1764433851225,-403.041768,0.00016,2]
[395105068,1764433851243,-744.159204,0.00016,2]
[395105069,1764433851254,-403.041768,0.00016,2]
[395105070,1764433851263,-744.159204,0.00016,2]
[395105071,1764433851272,-403.041768,0.00016,2]
[395105072,1764433851282,-744.159204,0.00016,2]
[395105073,1764433851291,-403.041768,0.00016,2]
[395105074,1764433851300,-151.0,0.00016,2]
[395105075,1764433851309,-151.0,0.00016,2]
[395105076,1764433851318,-151.0,0.00016,2]
[395105077,1764433851327,-151.0,0.00016,2]
[395105078,1764433851338,-151.0,0.00016,2]
[395105079,1764433851348,-529.750646,0.00016,2]
[395105080,1764433851357,-529.750646,0.00016,2]
[395105081,1764433851366,-151.0,0.00016,2]
[395105082,1764433851375,-151.0,0.00016,2]
[395105083,1764433851385,-151.0,0.00016,2]
[395105084,1764433851395,-151.0,0.00016,2]
[395105085,1764433851404,-151.0,0.00016,2]
[395105086,1764433851413,-151.0,0.00016,2]
[395105087,1764433851422,-295.914944,0.00016,2]
[395105088,1764433851432,-296.881878,0.00016,2]
[395105089,1764433851440,-295.914944,0.00016,2]
[395105090,1764433851450,-529.750646,0.00016,2]
[395105091,1764433851459,-296.881878,0.00016,2]
[395105092,1764433851469,-295.914944,0.00016,2]
[395105093,1764433851478,-529.750646,0.00016,2]
[395105094,1764433851487,-296.881878,0.00016,2]
[395105095,1764433851496,-295.914944,0.00016,2]
[395105096,1764433851505,-296.881878,0.00016,2]
[395105097,1764433851514,-151.0,0.00016,2]
[395105098,1764433851523,-168.409941,0.00016,2]
[395105099,1764433851533,-151.0,0.00016,2]
[395105100,1764433851543,-168.409941,0.00016,2]
[395105101,1764433851551,-168.409941,0.00016,2]
[395105102,1764433851560,-168.409941,0.00016,2]
[395105103,1764433851569,-151.0,0.00016,2]
[395105104,1764433851579,-243.523448,0.00016,2]
[395105105,1764433851588,-151.0,0.00016,2]
[395105106,1764433851598,-151.0,0.00016,2]
[395105107,1764433851606,-194.467468,0.00016,2]
[395105108,1764433851616,-151.0,0.00016,2]
[395105109,1764433851626,-194.467468,0.00016,2]
[395105110,1764433851635,-159.007814,0.00016,2]
[395105111,1764433851644,-194.467468,0.00016,2]
[395105112,1764433851653,-194.467468,0.00016,2]
[395105113,1764433851662,-292.548808,0.00016,2]
[395105114,1764433851671,-292.548808,0.00016,2]
[395105115,1764433851681,-151.0,0.00016,2]
[395105116,1764433851691,-151.0,0.00016,2]
[395105117,1764433851701,-292.548808,0.00016,2]
[395105118,1764433851709,-151.0,0.00016,2]
[395105119,1764433851719,-292.548808,0.00016,2]
[395105120,1764433851728,-342.458978,0.00016,2]
[395105121,1764433851737,-342.458978,0.00016,2]
[395105122,1764433851746,-342.458978,0.00016,2]
[395105123,1764433851755,-342.458978,0.00016,2]
[395105124,1764433851765,-151.0,0.00016,2]
[395105125,1764433851774,-151.0,0.00016,2]
[395105126,1764433851783,-578.874717,0.00016,2]
[395105127,1764433851792,-578.874717,0.00016,2]
[395105128,1764433851801,-578.874717,0.00016,2]
[395105129,1764433851811,-578.874717,0.00016,2]
[395105130,1764433851820,-304.768612,0.00016,2]
[395105131,1764433851829,-304.768612,0.00016,2]
[395105132,1764433851838,-304.768612,0.00016,2]
[395105133,1764433851846,-304.768612,0.00016,2]
[395105134,1764433851855,-151.0,0.00016,2]
[395105135,1764433851865,-151.0,0.00016,2]
[395105136,1764433851875,-151.0,0.00016,2]
[395105137,1764433851884,-151.0,0.00016,2]
[395105138,1764433851893,-427.446734,0.00016,2]
[395105139,1764433851902,-427.446734,0.00016,2]
[395105140,1764433851912,-427.446734,0.00016,2]
[395105141,1764433851921,-427.446742,0.00016,2]
[395105142,1764433851930,-151.0,0.00016,2]
[395105143,1764433851939,-151.0,0.00016,2]
[395105144,1764433851948,-151.0,0.00016,2]
[395105145,1764433851957,-21558.56302185,0.0001605,2]
[395105146,1764433851966,-14220.15128221,0.00016063,2]
[395105147,1764433851975,-933.82837125,0.00016063,2]
[395105148,1764433853000,-388.06127248,0.00016063,2]
[395105149,1764433853012,-8608.40680433,0.00016063,2]
[395105150,1764433853022,-438.2045482,0.00016097,2]
[395105151,1764433853072,999.0,0.00013887,3]
[395105152,1764433853880,-151.0,0.00014491,2]
[395105153,1764433853891,-253.674082,0.00014491,2]
[395105154,1764433853900,-151.0,0.00014491,2]
[395105155,1764433853912,-253.674082,0.00014491,2]
[395105156,1764433853922,-151.0,0.00014669,2]
[395105157,1764433853931,-253.674082,0.00014669,2]
[395105158,1764433853943,-151.0,0.00014669,2]
[395105159,1764433853952,-151.0,0.00014691,2]
[395105160,1764433853962,-151.0,0.00014948,2]
[395105161,1764433853972,-253.674082,0.00014948,2]
[395105162,1764433853982,-81.71251006,0.00014948,2]
[395105163,1764433854671,-69.28748994,0.00014948,2]
[395105164,1764433854683,-253.674082,0.00015227,2]
[395105165,1764433854693,-151.0,0.00015227,2]
[395105166,1764433854703,-253.674082,0.00015227,2]
[395105167,1764433854714,-151.0,0.00015227,2]
[395105168,1764433854724,-253.674082,0.00015784,2]
[395105169,1764433854734,-151.0,0.00015784,2]
[395105170,1764433854745,-253.674082,0.00015784,2]
[395105171,1764433854755,-286.12111536,0.00016097,2]
[395105172,1764433951878,150.0,6.6e-07,2]
[395105173,1764433961304,150.0,6.6e-07,2]
[395105179,1764434328056,584.192003,0.00014213,2]
[395105180,1764434388358,155.31,6.926e-05,2]
[395105181,1764434388590,155.31,7.458e-05,2]
[395105182,1764434388786,155.31,7.991e-05,2]
[395105183,1764434388985,155.31,8.524e-05,2]
[395105184,1764434389183,155.31,9.056e-05,2]
[395105185,1764434389390,155.31,9.589e-05,2]
[395105186,1764434389798,155.31,0.00010122,2]
[395105187,1764434390025,155.31,0.00010655,2]
[395105188,1764434390228,155.31,0.00011187,2]
[395105189,1764434390439,155.31,0.0001172,2]
[395105190,1764434390701,155.31,0.00012253,2]
[395105191,1764434390899,155.31,0.00012786,2]
[395105192,1764434391113,155.31,0.00013318,2]
[395105193,1764434391318,155.31,0.00013851,2]
[395105194,1764434426733,1878.66,0.00013689,2]
[395105195,1764434581347,200.0,0.00013699,2]
[395105196,1764434626952,175.73,0.00010875,2]
[395105197,1764434683124,-1200.0,0.00014284,2]
[395105198,1764434683152,-300.0,0.00014284,2]
[395105199,1764434683180,-1058.48361234,0.00014284,2]
[395105200,1764434683515,-7722.05334732,0.00014285,2]
[395105201,1764434683533,-10000.01,0.00014285,2]
[395105202,1764434683558,-10000.01,0.00014285,2]
[395105203,1764434684193,-4141.19724732,0.00014285,2]
[395105204,1764434684234,-1717.61550536,0.00014285,2]
[395105205,1764434684268,-300.0,0.00014285,2]
[395105206,1764434684298,-195.0,0.00014286,2]
[395105207,1764434684327,-760.2064,0.00014286,2]
[395105208,1764434684368,-4724.6672422,0.00014286,2]
[395105209,1764434684408,-640.62527935,0.00014286,2]
[395105210,1764434684441,-200.0,0.00014318,2]
[395105211,1764434684468,-1700.7756,0.00014356,2]
[395105212,1764434684497,-150.0,0.00014357,2]
[395105213,1764434684526,-280.2,0.00014374,2]
[395105214,1764434684558,-299.99,0.00014374,2]
[395105215,1764434684587,-1595.45,0.00014374,2]
[395105216,1764434684807,-904.94081529,0.00014374,2]
[395105217,1764434684821,-95.04918471,0.00014374,2]
[395105218,1764434684830,-455.62633089,0.00014374,2]
[395105219,1764434684844,-640.62527935,0.00014374,2]
[395105220,1764434684858,-200.0,0.00014374,2]
[395105221,1764434684872,-1700.7756,0.00014374,2]
[395105222,1764434684885,-150.0,0.00014374,2]
[395105223,1764434684899,-280.2,0.00014374,2]
[395105224,1764434684913,-299.99,0.00014374,2]
[395105225,1764434684926,-1595.45,0.00014374,2]
[395105226,1764434684939,-265.9282413,0.00014374,2]
[395105227,1764434692548,3552.06,0.00014214,2]
[395105228,1764434694997,-4411.39454846,0.00014374,2]
[395105229,1764434701770,-1200.0,0.00014373,2]
[395105230,1764434701802,-300.0,0.00014373,2]
[395105231,1764434701862,-4625.17090308,0.00014374,2]
[395105232,1764434702001,-150.0,0.00014373,2]
[395105233,1764434702049,-9700.01,0.00014374,2]
[395105234,1764434702119,-10000.01,0.00014374,2]
[395105235,1764434702229,-10000.01,0.00014374,2]
[395105236,1764434702339,-10000.01,0.00014374,2]
[395105237,1764434702467,-3411.19909692,0.00014374,2]
[395105238,1764434702496,-150.99,0.00014374,2]
[395105239,1764434702552,-2875.63180616,0.00014374,2]
[395105240,1764434702619,-3339.26819384,0.00014374,2]
[395105241,1764434702648,-200.0,0.00014377,2]
[395105242,1764434702677,-151.0,0.00014377,2]
[395105243,1764434702706,-151.0,0.00014377,2]
[395105244,1764434702737,-151.0,0.00014377,2]
[395105245,1764434702767,-151.0,0.00014377,2]
[395105246,1764434702797,-151.0,0.00014377,2]
[395105247,1764434702830,-151.0,0.00014377,2]
[395105248,1764434702859,-151.0,0.00014377,2]
[395105249,1764434702888,-151.0,0.00014377,2]
[395105250,1764434702916,-151.0,0.00014377,2]
[395105251,1764434702945,-52.47361232,0.00014377,2]
[395105252,1764434703047,-98.52638768,0.00014377,2]
[395105253,1764434703079,-151.0,0.00014377,2]
[395105254,1764434703109,-151.0,0.00014377,2]
[395105255,1764434703210,-0.02,0.00014377,2]
[395105256,1764434703341,-98.50638768,0.00014377,2]
[395105257,1764434703368,-9198.95722464,0.00014377,2]
[395105258,1764434703409,-702.50638768,0.00014377,2]
[395105259,1764434703420,-150.99,0.00014377,2]
[395105260,1764434706041,10000.01,0.000142,2]
[395105261,1764434706065,10000.01,0.000142,2]
[395105262,1764434706088,10000.01,0.000142,2]
[395105263,1764434706119,3256.97,0.000142,2]
[395105264,1764434707564,-151.0,0.00014383,2]
[395105265,1764434707597,-252.9310097,0.00014383,2]
[395105266,1764434707628,-292.06215603,0.00014383,2]
[395105267,1764434707657,-500.0,0.00014383,2]
[395105268,1764434707691,-859.94003989,0.00014383,2]
[395105269,1764434707724,-396.44492712,0.00014383,2]
[395105270,1764434707759,-859.94003989,0.00014383,2]
[395105271,1764434708201,-500.0,0.00014383,2]
[395105272,1764434708236,-859.94003989,0.00014383,2]
[395105273,1764434711607,-859.94003989,0.00014383,2]
[395105274,1764434711636,-500.0,0.00014383,2]
[395105275,1764434711669,-859.94003989,0.00014383,2]
[395105276,1764434711700,-859.94003989,0.00014383,2]
[395105277,1764434711730,-500.0,0.00014383,2]
[395105278,1764434711762,-859.94003989,0.00014383,2]
[395105279,1764434711792,-260.54964099,0.00014383,2]
[395105280,1764434711827,-599.3903989,0.00014383,2]
[395105281,1764434711855,-500.0,0.00014383,2]
[395105282,1764434711886,-859.94003989,0.00014383,2]
[395105283,1764434711921,-859.94003989,0.00014383,2]
[395105284,1764434711954,-859.94003989,0.00014383,2]
[395105285,1764434711988,-859.94003989,0.00014383,2]
[395105286,1764434712021,-61.76884319,0.00014383,2]
[395105287,1764434712444,-798.1711967,0.00014383,2]
[395105288,1764434712480,-859.94003989,0.00014383,2]
[395105289,1764434712516,-859.94003989,0.00014383,2]
[395105290,1764434712549,-859.94003989,0.00014383,2]
[395105291,1764434712585,-859.94003989,0.00014383,2]
[395105292,1764434712620,-664.20724759,0.00014383,2]
[395105293,1764434712665,-195.7327923,0.00014383,2]
[395105294,1764434712698,-859.94003989,0.00014383,2]
[395105295,1764434712734,-859.94003989,0.00014383,2]
[395105296,1764434712771,-859.94003989,0.00014383,2]
[395105297,1764434712805,-859.94003989,0.00014383,2]
[395105298,1764434712839,-859.94003989,0.00014383,2]
[395105299,1764434712874,-149.20397661,0.00014383,2]
[395105300,1764434713718,-710.73606328,0.00014383,2]
[395105301,1764434713758,-859.94003989,0.00014383,2]
[395105302,1764434713798,-859.94003989,0.00014383,2]
[395105303,1764434713838,-859.94003989,0.00014383,2]
[395105304,1764434713876,-859.94003989,0.00014383,2]
[395105305,1764434713913,-839.07751443,0.00014383,2]
[395105306,1764434716797,-20.86252546,0.00014383,2]
[395105307,1764434716833,-859.94003989,0.00014383,2]
[395105308,1764434716868,-859.94003989,0.00014383,2]
[395105309,1764434716904,-859.94003989,0.00014383,2]
[395105310,1764434716939,-859.94003989,0.00014383,2]
[395105311,1764434716977,-859.94003989,0.00014383,2]
[395105312,1764434717012,-498.94451029,0.00014383,2]
[395105313,1764434717248,-360.9955296,0.00014383,2]
[395105314,1764434717672,-859.94003989,0.00014383,2]
[395105315,1764434717709,-859.94003989,0.00014383,2]
[395105316,1764434717743,-859.94003989,0.00014383,2]
[395105317,1764434717774,-859.94003989,0.00014383,2]
[395105318,1764434717807,-859.94003989,0.00014383,2]
[395105319,1764434728993,-2979.08893449,0.00014286,2]
[395105320,1764434729030,-859.94003989,0.00014383,2]
[395105321,1764434729067,-859.94003989,0.00014383,2]
[395105322,1764434729201,-859.94003989,0.00014383,2]
[395105323,1764434729239,-859.94003989,0.00014383,2]
[395105324,1764434729276,-859.94003989,0.00014383,2]
[395105325,1764434729315,-859.94003989,0.00014383,2]
[395105326,1764434729352,-859.94003989,0.00014383,2]
[395105327,1764434729391,-540.66956121,0.00014383,2]
[395105328,1764434729499,-319.27047868,0.00014383,2]
[395105329,1764434729537,-859.94003989,0.00014383,2]
[395105330,1764434729585,-859.94003989,0.00014383,2]
[395105331,1764434729625,-859.94003989,0.00014383,2]
[395105332,1764434729661,-859.94003989,0.00014383,2]
[395105333,1764434729698,-859.94003989,0.00014383,2]
[395105334,1764434729843,-859.94003989,0.00014383,2]
[395105335,1764434729881,-859.94003989,0.00014383,2]
[395105336,1764434729919,-859.94003989,0.00014383,2]
[395105337,1764434729955,-859.94003989,0.00014383,2]
[395105338,1764434729992,-859.94003989,0.00014383,2]
[395105339,1764434730029,-540.66956121,0.00014383,2]
[395105340,1764434730144,-319.27047868,0.00014383,2]
[395105341,1764434730184,-859.94003989,0.00014383,2]
[395105342,1764434730223,-851.34063949,0.00014383,2]
[395105343,1764434730262,-851.34063949,0.00014383,2]
[395105344,1764434730300,-851.34063949,0.00014383,2]
[395105345,1764434730338,-851.34063949,0.00014383,2]
[395105346,1764434732177,-851.34063949,0.00014383,2]
[395105347,1764434732211,-851.34063949,0.00014383,2]
[395105348,1764434732244,-851.34063949,0.00014383,2]
[395105349,1764434732278,-851.34063949,0.00014383,2]
[395105350,1764434732311,-851.34063949,0.00014383,2]
[395105351,1764434732344,-635.26296561,0.00014383,2]
[395105352,1764434732471,-216.07767388,0.00014383,2]
[395105353,1764434732503,-851.34063949,0.00014383,2]
[395105354,1764434732534,-851.34063949,0.00014383,2]
[395105355,1764434732567,-851.34063949,0.00014383,2]
[395105356,1764434732599,-851.34063949,0.00014383,2]
[395105357,1764434732632,-851.34063949,0.00014383,2]
[395105358,1764434732665,-203.10761785,0.00014383,2]
[395105359,1764434732796,-648.23302164,0.00014383,2]
[395105360,1764434732829,-851.34063949,0.00014383,2]
[395105361,1764434732862,-851.34063949,0.00014383,2]
[395105362,1764434732895,-851.34063949,0.00014383,2]
[395105363,1764434732926,-851.34063949,0.00014383,2]
[395105364,1764434732958,-851.34063949,0.00014383,2]
[395105365,1764434733121,-851.34063949,0.00014383,2]
[395105366,1764434733154,-851.34063949,0.00014383,2]
[395105367,1764434733185,-851.34063949,0.00014383,2]
[395105368,1764434733218,-851.34063949,0.00014383,2]
[395105369,1764434733249,-851.34063949,0.00014383,2]
[395105370,1764434733282,-635.26296561,0.00014383,2]
[395105371,1764434735543,-216.07767388,0.00014383,2]
[395105372,1764434735579,-851.34063949,0.00014383,2]
[395105373,1764434735613,-851.34063949,0.00014383,2]
[395105374,1764434735645,-851.34063949,0.00014383,2]
[395105375,1764434735672,-233.645,0.00014383,2]
[395105376,1764434735700,-667.1268153,0.00014383,2]
[395105377,1764434736026,-2658.2671847,0.00014383,2]
[395105378,1764434736067,-1003.2403803,0.00014385,2]
[395105379,1764434736117,-362.25120489,0.00014385,2]
[395105380,1764434736160,-153.47694726,0.00014385,2]
[395105381,1764434736202,-500.0,0.00014385,2]
[395105382,1764434736243,-12.68466717,0.00014385,2]
[395105383,1764434736387,-620.16923136,0.00014385,2]
[395105384,1764434736434,-1152.02,0.00014385,2]
[395105385,1764434736480,-500.0,0.00014385,2]
[395105386,1764434736523,-500.18909078,0.00014385,2]
[395105387,1764434736566,-182.23056781,0.00014385,2]
[395105388,1764434736609,-500.0,0.00014385,2]
[395105389,1764434737233,3090.7922201,0.000142,2]
[395105390,1764434737264,2432.2077799,0.000142,2]
[395105391,1764434774718,151.0,0.00014383,2]
[395105392,1764434799947,321.82721412,0.00014385,2]
[395105393,1764434814865,4252.20051798,0.00014286,2]
[395105394,1764434821714,300.0,0.00014385,2]
[395105396,1764434868155,2542.774488,0.000142,3]
[395105397,1764434868176,2980.225512,0.000142,3]
[395105398,1764434881290,300.0,0.00014385,2]
[395105399,1764434882780,500.0,0.00014385,2]
[395105400,1764434882818,500.0,0.00014385,2]
[395105401,1764434882854,500.0,0.00014385,2]
[395105402,1764434882888,150.0,0.00014385,2]
[395105403,1764434882927,500.0,0.00014385,2]
[395105404,1764434882964,500.0,0.00014385,2]
[395105405,1764434883001,508.73703163,0.00014385,2]
[395105406,1764434883039,500.0,0.00014385,2]
[395105407,1764434883079,500.0,0.00014385,2]
[395105408,1764434883123,500.0,0.00014385,2]
[395105409,1764434883160,500.0,0.00014385,2]
[395105410,1764434883197,500.0,0.00014385,2]
[395105411,1764434883235,500.0,0.00014385,2]
[395105412,1764434883271,500.0,0.00014385,2]
[395105413,1764434883307,61.04745637,0.00014385,2]
[395105414,1764434883331,438.95254363,0.00014385,2]
[395105415,1764434883368,500.0,0.00014385,2]
[395105416,1764434883411,500.0,0.00014385,2]
[395105417,1764434898844,500.0,0.00014385,2]
[395105418,1764434898883,500.0,0.00014385,2]
[395105419,1764434898920,500.0,0.00014385,2]
[395105420,1764434898963,500.0,0.00014385,2]
[395105421,1764434899008,508.73703163,0.00014385,2]
[395105422,1764434899048,500.0,0.00014385,2]
[395105423,1764434899089,500.0,0.00014385,2]
[395105424,1764434899128,500.0,0.00014385,2]
[395105425,1764434899180,500.0,0.00014385,2]
[395105426,1764434899218,500.0,0.00014385,2]
[395105427,1764434899445,5523.0,0.000145,5]
[395105428,1764434952454,560.54711944,0.00014286,2]
[395105429,1764434968187,9439.46288056,0.00014286,2]
[395105430,1764434968216,10000.01,0.00014286,2]
[395105431,1764434968243,10000.01,0.00014286,2]
[395105432,1764434968268,10000.01,0.00014286,2]
[395105433,1764434968292,10000.01,0.00014286,2]
[395105434,1764434968316,10000.01,0.00014286,2]
[395105435,1764434968341,10000.01,0.00014286,2]
[395105436,1764434968366,10000.01,0.00014286,2]
[395105437,1764434968391,10000.01,0.00014286,2]
[395105438,1764435001269,300.0,0.00014285,2]
[395105439,1764435001312,300.0,0.00014285,2]
[395105440,1764435001361,300.0,0.00014285,2]
[395105441,1764435001551,1200.0,0.00014285,2]
[395105442,1764435016343,305.65481374,0.000142,2]
[395105443,1764435018680,4168.35,0.00014276,2]
[395105444,1764435018866,3426.00518626,0.00014276,2]
[395105445,1764435018890,742.34481374,0.00014276,2]
[395105461,1764435032416,-250.0,0.00014286,2]
[395105462,1764435032436,-2127.37987507,0.00014286,2]
[395105465,1764435032455,-119475.53706193,0.00014286,2]
[395105468,1764435032466,-46025.76352419,0.00014286,2]
[395105480,1764435038471,-36539.30212869,0.00014286,2]
[395105488,1764435039919,500.0,0.00014285,2]
[395105489,1764435039969,253.57584342,0.00014285,2]